bitfinex/quotes_SOLUSD_20260118
["timestamp","ask_amount","ask_price","bid_price","bid_amount"]
[1768729517304,9.69607715,142.42,142.4,0.54521806]
[1768729522607,9.69607715,142.42,142.39,0.76243675]
[1768729522910,9.14298617,142.42,142.4,0.56243675]
[1768729527420,2.12134468,142.41,142.4,0.56243675]
[1768729528924,7.02164149,142.42,142.4,0.56243675]
[1768729529218,2.12134468,142.41,142.4,0.56243675]
[1768729531916,9.14298617,142.42,142.4,0.56243675]
[1768729534917,7.02164149,142.42,142.4,0.56243675]
[1768729535219,9.14298617,142.42,142.4,0.56243675]
[1768729543145,9.66112993,142.41,142.39,0.2]
[1768729543438,9.66112993,142.41,142.37,7.22348746]
[1768729543439,2.63891785,142.4,142.37,0.2]
[1768729543738,2.12134468,142.39,142.37,0.2]
[1768729545527,2.12134468,142.39,142.37,0.72593505]
[1768729546142,25.04164026,142.4,142.37,0.72593505]
[1768729546829,22.92029558,142.4,142.37,0.72593505]
[1768729547130,25.04164026,142.4,142.37,0.72593505]
[1768729549830,2.63891785,142.39,142.37,0.2]
[1768729550139,2.12134468,142.38,142.36,0.72593505]
[1768729553646,7.54061147,142.39,142.36,0.72593505]
[1768729553843,2.12134468,142.38,142.36,0.72593505]
[1768729554847,2.69288789,142.38,142.36,0.72593505]
[1768729555145,0.57154321,142.38,142.36,0.72593505]
[1768729555345,2.69288789,142.38,142.36,0.72593505]
[1768729555735,2.69288789,142.38,142.36,0.2]
[1768729555932,0.57154321,142.38,142.36,0.76509666]
[1768729556139,22.97415035,142.4,142.37,0.56509666]
[1768729556435,25.09549503,142.4,142.37,0.56509666]
[1768729556637,2.12134468,142.39,142.37,0.56509666]
[1768729556838,2.69288789,142.39,142.37,0.56509666]
[1768729557038,22.40260714,142.4,142.37,0.56509666]
[1768729557039,7.59415035,142.4,142.37,0.56509666]
[1768729557343,15.38,142.4,142.37,0.56509666]
[1768729558147,22.97403742,142.4,142.37,0.56509666]
[1768729559548,25.0953821,142.4,142.37,0.56509666]
[1768729561459,2.69288789,142.4,142.37,0.56509666]
[1768729561752,17.50134468,142.4,142.37,0.56509666]
[1768729561957,18.07288789,142.4,142.37,0.56509666]
[1768729562532,18.07288789,142.4,142.37,7.58898249]
[1768729563642,18.07288789,142.4,142.38,0.56509666]
[1768729564535,18.07288789,142.4,142.37,7.58898249]
[1768729568774,2.12134468,142.39,142.37,7.58898249]
[1768729569362,2.12134468,142.39,142.37,0.56509666]
[1768729569558,1.53914295,142.39,142.37,0.56509666]
[1768729569860,2.12134468,142.39,142.37,0.56509666]
[1768729571659,25.09538491,142.4,142.37,7.58904682]
[1768729571864,17.50134468,142.4,142.38,0.56509666]
[1768729572158,15.38,142.4,142.38,0.56509666]
[1768729572567,9.14351186,142.41,142.38,0.56509666]
[1768729572745,24.52351186,142.41,142.38,0.56509666]
[1768729573360,9.71505507,142.41,142.38,0.56509666]
[1768729573559,25.09505507,142.41,142.38,0.56509666]
[1768729578568,22.97371039,142.41,142.38,0.56509666]
[1768729578749,25.09505507,142.41,142.38,0.56509666]
[1768729579350,25.09550275,142.41,142.38,0.56509666]
[1768729587872,2.71353396,142.4,142.37,0.58639086]
[1768729588074,2.65353397,142.4,142.37,0.58639086]
[1768729590277,0.53174161,142.4,142.37,0.58639086]
[1768729596285,0.47174162,142.4,142.37,0.58639086]
[1768729597284,0.47174162,142.4,142.37,7.61014673]
[1768729602290,0.41174163,142.4,142.37,7.61014673]
[1768729607473,0.35174164,142.4,142.37,7.61014673]
[1768729611108,15.96280239,142.41,142.38,0.58693566]
[1768729612802,15.96280239,142.41,142.38,7.61019396]
[1768729619489,25.10658461,142.41,142.38,7.61019396]
[1768729623807,22.98479225,142.41,142.38,7.61019396]
[1768729624010,25.10658461,142.41,142.38,7.61019396]
[1768729625716,18.08459475,142.41,142.38,7.61019396]
[1768729629327,15.96280239,142.41,142.38,7.61019396]
[1768729641131,15.96280239,142.41,142.39,0.58263278]
[1768729641132,15.38,142.41,142.39,0.58263278]
[1768729641310,25.08183788,142.42,142.39,0.58263278]
[1768729641835,0.55871762,142.41,142.39,0.58263278]
[1768729643731,0.55871762,142.41,142.38,7.63098734]
[1768729649738,9.70216922,142.41,142.38,0.60759807]
[1768729653842,9.70216922,142.41,142.38,7.63101234]
[1768729658040,2.6801534,142.41,142.38,7.63101234]
[1768729660646,0.55871762,142.41,142.38,7.63101234]
[1768729660833,2.6801534,142.41,142.38,7.63101234]
[1768729661344,0.59786468,142.4,142.37,7.02373375]
[1768729661545,0.53786469,142.39,142.37,7.02373375]
[1768729662243,2.12143578,142.4,142.37,7.61887165]
[1768729663455,2.71930046,142.4,142.37,7.61887165]
[1768729664948,9.74180463,142.4,142.37,7.61887165]
[1768729665152,0.59786468,142.39,142.37,7.02373375]
[1768729666956,2.71930046,142.39,142.37,7.02373375]
[1768729670259,2.71930046,142.39,142.36,7.81936404]
[1768729671355,0.59786468,142.39,142.36,7.81936404]
[1768729675365,2.71930046,142.39,142.36,7.81936404]
[1768729675961,2.65930047,142.39,142.36,7.81936404]
[1768729679165,0.53786469,142.39,142.36,7.81936404]
[1768729679366,2.59930048,142.39,142.36,7.81936404]
[1768729679558,0.4778647,142.39,142.36,7.81936404]
[1768729679864,2.59930048,142.39,142.36,7.81936404]
[1768729680167,0.4778647,142.39,142.36,7.81936404]
[1768729680353,2.59930048,142.39,142.36,7.81936404]
[1768729681047,0.4778647,142.39,142.36,7.81936404]
[1768729681253,2.59930048,142.39,142.36,7.81936404]
[1768729682865,2.53930049,142.39,142.36,7.81936404]
[1768729683054,2.12143578,142.39,142.37,0.66475031]
[1768729683255,2.12143578,142.4,142.37,7.68865128]
[1768729684871,2.7472613,142.4,142.37,7.68865128]
[1768729686664,0.62582552,142.39,142.37,7.02390097]
[1768729686867,0.62582552,142.39,142.36,0.86475031]
[1768729686868,2.7472613,142.39,142.36,0.86475031]
[1768729687670,2.7472613,142.39,142.36,7.88909718]
[1768729692972,0.62582552,142.39,142.36,7.88909718]
[1768729693270,2.7472613,142.39,142.36,7.88909718]
[1768729693869,0.62582552,142.39,142.36,7.88909718]
[1768729694068,2.7472613,142.39,142.36,7.88909718]
[1768729701275,2.74803215,142.39,142.36,7.88909718]
[1768729701462,0.62582552,142.39,142.36,7.88909718]
[1768729709483,0.68719848,142.39,142.37,0.65783914]
[1768729709688,0.68719848,142.39,142.36,7.88218601]
[1768729718577,2.80940511,142.39,142.36,7.88218601]
[1768729719294,0.68719848,142.39,142.36,7.88218601]
[1768729728496,0.68719848,142.39,142.36,7.22434687]
[1768729728701,43.61814087,142.42,142.36,0.2]
[1768729728702,0.66698323,142.37,142.36,0.2]
[1768729728995,0.66698323,142.38,142.36,7.22444506]
[1768729731099,0.66698323,142.38,142.36,0.2]
[1768729731399,0.66698323,142.38,142.36,0.86182172]
[1768729734999,0.66698323,142.38,142.36,0.2]
[1768729735381,0.66698323,142.38,142.36,0.83815948]
[1768729739104,0.60698324,142.38,142.36,0.83815948]
[1768729758361,0.54698325,142.38,142.36,0.83815948]
[1768729758938,12.80723607,142.41,142.37,0.63815948]
[1768729759149,2.12220663,142.41,142.37,0.63815948]
[1768729760259,9.14434596,142.41,142.37,0.63815948]
[1768729760454,9.84840204,142.41,142.37,0.63815948]
[1768729761360,9.84788316,142.41,142.37,0.63815948]
[1768729762456,7.72619541,142.41,142.38,0.69922781]
[1768729764862,9.84788316,142.41,142.38,0.69922781]
[1768729769071,7.72619541,142.41,142.38,0.69922781]
[1768729769247,0.69043964,142.4,142.38,0.69922781]
[1768729769562,9.83426672,142.41,142.38,0.69922781]
[1768729782609,7.71257897,142.41,142.38,0.69922781]
[1768729782912,9.83426672,142.41,142.38,0.69922781]
[1768729783415,7.71257897,142.41,142.38,0.69922781]
[1768729783578,9.83426672,142.41,142.38,0.69922781]
[1768729788610,7.71257897,142.41,142.38,0.69922781]
[1768729788906,9.83426672,142.41,142.38,0.69922781]
[1768729796684,2.12168775,142.4,142.38,0.69922781]
[1768729798510,9.83426672,142.41,142.38,0.69922781]
[1768729802012,7.71257897,142.41,142.38,0.69922781]
[1768729802215,9.83426672,142.41,142.38,0.69922781]
[1768729802414,7.71257897,142.41,142.38,0.69922781]
[1768729808621,9.83426672,142.41,142.38,0.69922781]
[1768729812141,10.68254481,142.42,142.39,0.7064681]
[1768729812304,7.02133337,142.43,142.4,0.7064681]
[1768729812610,14.24524135,142.43,142.4,0.7064681]
[1768729812806,14.92104294,142.43,142.4,0.7064681]
[1768729813823,26.06199142,142.44,142.4,9.14411869]
[1768729814010,2.2216073,142.44,142.42,2.12168775]
[1768729814213,13.69513332,142.47,142.42,2.09168775]
[1768729814412,13.01933173,142.47,142.43,2.12168775]
[1768729815432,0.67580159,142.44,142.4,7.02243094]
[1768729815618,0.67580159,142.44,142.38,121.05813363]
[1768729815619,0.67580159,142.44,142.39,30.21428798]
[1768729815922,9.14209283,142.45,142.39,30.21428798]
[1768729816132,9.81789442,142.45,142.39,30.21428798]
[1768729816330,9.81789442,142.45,142.39,47.77170071]
[1768729816907,9.81789442,142.45,142.4,2.12168775]
[1768729817533,9.81789442,142.45,142.39,45.65001296]
[1768729817830,9.81789442,142.45,142.41,7.02197879]
[1768729820332,7.69620667,142.45,142.41,7.02197879]
[1768729820534,9.81789442,142.45,142.41,7.02197879]
[1768729823356,9.81662263,142.45,142.4,9.14288787]
[1768729823641,9.81662263,142.45,142.4,7.02247191]
[1768729823950,9.81662263,142.45,142.4,9.14288787]
[1768729824340,0.68494723,142.44,142.4,9.14288787]
[1768729825235,9.14082104,142.45,142.4,9.14288787]
[1768729825422,9.82576827,142.45,142.4,9.14288787]
[1768729830343,0.68494723,142.44,142.4,9.14288787]
[1768729835440,0.68494723,142.44,142.39,17.55741273]
[1768729835746,0.68494723,142.44,142.4,2.12041596]
[1768729836941,0.68494723,142.44,142.41,7.02197879]
[1768729837117,0.68494723,142.44,142.41,6.99197879]
[1768729839940,0.68494723,142.44,142.39,19.67782869]
[1768729841343,0.68494723,142.44,142.39,26.70079378]
[1768729843350,0.68494723,142.44,142.39,17.55741273]
[1768729843524,0.68494723,142.44,142.39,19.67782869]
[1768729844447,0.68494723,142.44,142.4,2.12041596]
[1768729845849,0.68494723,142.44,142.39,26.70079378]
[1768729853539,0.68494723,142.44,142.4,2.12041596]
[1768729856650,0.68494723,142.44,142.41,7.02197879]
[1768729858749,0.60191003,142.46,142.42,2.12041596]
[1768729858949,0.60191003,142.46,142.43,2.12041596]
[1768729860337,0.60191003,142.46,142.44,7.02049985]
[1768729860742,6.00001001,142.47,142.44,7.43649994]
[1768729861057,6.00001001,142.47,142.44,9.5569159]
[1768729861495,6.00001001,142.47,142.44,9.14091581]
[1768729862747,0.60191003,142.46,142.44,9.14091581]
[1768729864467,0.60191003,142.46,142.44,7.02049985]
[1768729864960,0.60191003,142.46,142.43,20.08511271]
[1768729866060,0.60191003,142.46,142.44,7.02049985]
[1768729866265,0.60191003,142.46,142.42,2.52103521]
[1768729867467,0.60191003,142.46,142.43,7.02079854]
[1768729871760,0.60191003,142.46,142.43,7.4177038]
[1768729872260,0.60191003,142.46,142.43,9.53811976]
[1768729877972,0.60191003,142.46,142.43,7.4177038]
[1768729885770,0.60191003,142.46,142.42,7.02128696]
[1768729885976,7.01959329,142.46,142.43,7.0209422]
[1768729886276,0.57743743,142.45,142.43,7.0209422]
[1768729908595,0.57743743,142.45,142.43,6.99094221]
[1768729946630,0.56396679,142.46,142.43,7.35687548]
[1768729952229,0.56396679,142.46,142.43,6.99094221]
[1768729958233,0.56396679,142.46,142.43,7.35418629]
[1768729959144,0.56396679,142.46,142.43,9.47393139]
[1768729959346,0.55284122,142.46,142.43,9.47372367]
[1768729962550,6.55285123,142.47,142.44,0.36222906]
[1768729962727,6.55285123,142.47,142.44,2.48197416]
[1768729963122,6.00001001,142.47,142.44,2.1197451]
[1768729963343,6.00001001,142.47,142.44,2.702588]
[1768729963652,6.00001001,142.47,142.45,7.02000702]
[1768729965038,6.55285123,142.47,142.45,7.02000702]
[1768729970975,6.00001001,142.47,142.45,7.60284992]
[1768729971985,6.55285123,142.47,142.45,7.60284992]
[1768729972496,6.00001001,142.47,142.45,7.60284992]
[1768729972974,6.59232904,142.47,142.45,7.60284992]
[1768729973590,6.00001001,142.47,142.45,7.57220927]
[1768729974109,6.00001001,142.47,142.45,9.69195437]
[1768729974283,6.00001001,142.47,142.45,7.57220927]
[1768729980103,6.00001001,142.47,142.45,7.02000702]
[1768729980305,6.00001001,142.47,142.46,0.55220225]
[1768729980498,6.00001001,142.47,142.45,9.13975212]
[1768729982511,6.00001001,142.47,142.45,9.49443445]
[1768729983206,3.65966121,142.5,142.47,0.35424357]
[1768729983509,7.60904094,142.52,142.49,2.1197451]
[1768729983510,0.59231903,142.52,142.49,2.1197451]
[1768729983811,0.59231903,142.52,142.48,2.1197451]
[1768729984590,0.59231903,142.52,142.48,9.13781899]
[1768729986607,0.59231903,142.52,142.48,9.16057758]
[1768729992496,0.59231903,142.52,142.49,2.1197451]
[1768729992696,7.70857617,142.53,142.5,0.11488651]
[1768729992920,7.70857617,142.53,142.5,2.23463161]
[1768729993300,0.59231903,142.52,142.5,2.1197451]
[1768729994213,0.59231903,142.52,142.49,7.01796468]
[1768729994412,0.59231903,142.52,142.46,9.26941016]
[1768729994413,2.1197451,142.51,142.46,9.26941016]
[1768729994718,0.59231903,142.5,142.46,7.14966506]
[1768729996114,0.59231903,142.5,142.46,9.26941016]
[1768729999805,0.59231903,142.5,142.47,0.22008013]
[1768730000119,0.59231903,142.5,142.48,2.1197451]
[1768730000715,0.59231903,142.5,142.47,0.22008013]
[1768730000716,0.59231903,142.5,142.46,7.01922509]
[1768730001025,0.59231903,142.48,142.45,7.57200108]
[1768730007831,0.7267381,142.47,142.44,7.02031866]
[1768730008011,0.7267381,142.47,142.44,7.7155989]
[1768730008211,0.6667381,142.47,142.44,7.7155989]
[1768730018548,7.01754385,142.5,142.45,0.7877712]
[1768730018730,0.81022924,142.49,142.45,0.7877712]
[1768730019555,0.81022924,142.48,142.45,7.80763744]
[1768730030760,0.81022924,142.47,142.44,0.7877712]
[1768730031067,0.75022923,142.47,142.44,0.7877712]
[1768730033956,0.75022923,142.47,142.44,7.80795338]
[1768730035753,0.69022921,142.47,142.44,7.80795338]
[1768730040863,0.93671532,142.48,142.45,0.95381057]
[1768730041053,0.93671532,142.48,142.46,0.95381057]
[1768730041565,0.93671532,142.49,142.46,0.95381057]
[1768730042145,0.93671532,142.49,142.46,7.97322119]
[1768730042564,3.05599667,142.49,142.46,7.97322119]
[1768730045667,0.93671532,142.49,142.46,7.97322119]
[1768730046067,3.05599667,142.49,142.46,7.97322119]
[1768730052371,0.93671532,142.49,142.46,7.97322119]
[1768730066880,3.05599667,142.49,142.46,7.97322119]
[1768730067390,3.05596838,142.49,142.46,7.97322119]
[1768730069896,10.07401145,142.49,142.46,0.95381057]
[1768730070071,1.07872883,142.48,142.45,8.11599439]
[1768730070387,3.19798189,142.48,142.45,8.11599439]
[1768730071892,1.07872883,142.47,142.44,25.66793128]
[1768730074196,1.01872883,142.47,142.44,25.66793128]
[1768730074689,1.01872883,142.47,142.45,1.09618179]
[1768730074992,2.11925306,142.48,142.45,1.09618179]
[1768730076199,3.23218044,142.48,142.45,1.09618179]
[1768730076692,3.23218044,142.48,142.45,8.11616665]
[1768730077391,1.11292738,142.48,142.45,8.11616665]
[1768730097511,1.23286047,142.47,142.44,8.1803458]
[1768730097807,1.17286047,142.47,142.44,8.1803458]
[1768730149560,1.17286047,142.47,142.45,1.28784869]
[1768730149767,1.35389046,142.48,142.45,8.30745782]
[1768730162056,1.37420963,142.5,142.46,1.33627142]
[1768730162256,3.493727,142.5,142.46,1.33627142]
[1768730162454,1.37420963,142.49,142.46,3.45578879]
[1768730163277,1.37420963,142.49,142.47,7.01902154]
[1768730166779,23.7713544,142.51,142.48,1.33627142]
[1768730167384,22.39714477,142.51,142.48,1.33627142]
[1768730167559,1.37420963,142.5,142.47,1.33627142]
[1768730168783,1.37420963,142.5,142.47,3.45578879]
[1768730172979,1.37420963,142.5,142.47,1.33627142]
[1768730173165,1.37420963,142.5,142.47,3.45578879]
[1768730180589,1.37420963,142.49,142.46,7.01951424]
[1768730180893,1.37420963,142.49,142.46,8.35578566]
[1768730185683,1.38729724,142.48,142.45,8.31924183]
[1768730186198,1.38729724,142.48,142.45,1.29941397]
[1768730186375,1.38729724,142.48,142.44,8.31982034]
[1768730186997,7.01856219,142.48,142.44,8.31982034]
[1768730187292,1.38729724,142.47,142.44,8.31982034]
[1768730191188,1.38729724,142.47,142.43,25.8722476]
[1768730191397,1.38729724,142.47,142.43,27.99185285]
[1768730191723,1.38729724,142.47,142.43,8.32040673]
[1768730193794,1.38729724,142.46,142.43,8.32040673]
[1768730200186,1.32729723,142.46,142.43,8.32040673]
[1768730216211,1.32729723,142.46,142.43,10.44001198]
[1768730216405,1.32729723,142.46,142.44,8.44724571]
[1768730221504,1.32729723,142.46,142.43,1.42695842]
[1768730224547,1.32729723,142.46,142.44,7.02049985]
[1768730225433,1.26729723,142.46,142.44,7.02049985]
[1768730236665,1.36605243,142.47,142.44,8.44745827]
[1768730237051,1.36605243,142.48,142.45,1.42695842]
[1768730238150,1.36605243,142.48,142.44,10.56706352]
[1768730245054,1.36605243,142.48,142.45,1.47190237]
[1768730247171,1.36605243,142.48,142.46,1.47190237]
[1768730247755,1.36605243,142.48,142.45,7.01966012]
[1768730247947,1.36605243,142.48,142.45,8.49156249]
[1768730249051,1.42482615,142.47,142.45,1.47190237]
[1768730275695,12.05100872,142.48,142.45,1.47190237]
[1768730276514,10.68183412,142.48,142.45,1.47190237]
[1768730276721,1.3691746,142.47,142.45,1.47190237]
[1768730277016,12.05100872,142.48,142.45,1.47190237]
[1768730278418,10.68183412,142.48,142.45,1.47190237]
[1768730278613,12.05100872,142.48,142.45,1.47190237]
[1768730282827,1.3691746,142.47,142.45,1.47190237]
[1768730283922,5.03235637,142.48,142.45,8.49173259]
[1768730284124,1.3691746,142.5,142.47,1.38753286]
[1768730284302,8.38629045,142.51,142.48,1.38753286]
[1768730284506,5.03178173,142.52,142.49,3.50713677]
[1768730284707,6.81326316,142.52,142.49,2.11960391]
[1768730284920,1.3691746,142.52,142.49,2.11960391]
[1768730285121,8.38573853,142.52,142.49,2.11960391]
[1768730286027,7.01656393,142.52,142.49,2.11960391]
[1768730286229,0.1,142.53,142.51,2.11960391]
[1768730286613,0.1,142.53,142.51,3.50713677]
[1768730287022,0.1,142.53,142.51,1.38753286]
[1768730287326,0.1,142.53,142.51,8.40453859]
[1768730287532,1.4691746,142.53,142.51,7.01700573]
[1768730289325,1.4691746,142.53,142.51,6.98700573]
[1768730293115,1.4691746,142.53,142.51,8.37453859]
[1768730293337,0.1,142.53,142.51,8.37453859]
[1768730297214,1.4691746,142.53,142.51,8.37453859]
[1768730297535,1.3691746,142.51,142.48,8.40599544]
[1768730313059,10.65061806,142.52,142.49,1.56354943]
[1768730313454,1.5153342,142.51,142.48,1.56354943]
[1768730315551,1.5153342,142.51,142.48,8.58168872]
[1768730322865,1.5153342,142.51,142.49,1.64999208]
[1768730325768,1.5153342,142.51,142.49,8.66792327]
[1768730327376,1.5153342,142.51,142.48,1.64999208]
[1768730333367,1.5153342,142.51,142.48,7.01831998]
[1768730336958,1.5153342,142.51,142.47,19.2872894]
[1768730336959,1.62026613,142.49,142.45,122.78918922]
[1768730337161,1.62026613,142.49,142.46,1.73973553]
[1768730337390,7.01719054,142.51,142.46,1.73973553]
[1768730337391,15.36,142.52,142.48,3.85812482]
[1768730337585,15.36,142.52,142.48,1.73973553]
[1768730338093,22.37661869,142.52,142.48,1.73973553]
[1768730338706,24.49500798,142.52,142.48,1.73973553]
[1768730338881,24.49500798,142.52,142.48,8.75823366]
[1768730339199,24.49500798,142.52,142.47,8.75861968]
[1768730339384,1.62026613,142.51,142.47,8.75861968]
[1768730340296,3.73865542,142.51,142.47,8.75861968]
[1768730340487,1.62026613,142.5,142.47,7.01888415]
[1768730341297,1.62026613,142.5,142.47,8.75861968]
[1768730373501,3.738945,142.5,142.47,8.75861968]
[1768730373902,1.62026613,142.5,142.47,8.75861968]
[1768730375197,8.63781874,142.5,142.47,8.75861968]
[1768730381906,1.801596,142.49,142.46,8.93827453]
[1768730382114,1.801596,142.49,142.46,11.0569534]
[1768730382313,1.801596,142.49,142.46,8.93827453]
[1768730382509,1.801596,142.49,142.46,11.0569534]
[1768730382718,1.801596,142.49,142.47,1.91895746]
[1768730387432,1.801596,142.49,142.47,8.9379497]
[1768730387731,1.801596,142.5,142.47,8.9379497]
[1768730402947,8.81920635,142.5,142.47,8.9379497]
[1768730407149,1.79942095,142.49,142.46,8.98715912]
[1768730411234,1.79942095,142.49,142.46,11.10583799]
[1768730414153,1.79942095,142.49,142.46,8.98715912]
[1768730414751,1.79942095,142.49,142.46,11.10583799]
[1768730416957,1.79942095,142.49,142.46,8.98715912]
[1768730417335,1.79942095,142.49,142.46,11.10583799]
[1768730427654,1.79942095,142.49,142.46,8.98715912]
[1768730427856,1.79942095,142.49,142.46,11.10583799]
[1768730430762,1.86166686,142.5,142.47,1.91634788]
[1768730431546,1.86166686,142.5,142.46,11.05454019]
[1768730431962,1.86166686,142.5,142.46,8.93586132]
[1768730432459,1.86166686,142.5,142.46,11.05454019]
[1768730433371,1.86166686,142.5,142.46,11.05462684]
[1768730433540,1.86166686,142.5,142.46,7.01951344]
[1768730434769,1.86166686,142.5,142.46,8.93586132]
[1768730435758,1.86166686,142.5,142.46,11.05462684]
[1768730436757,1.86166686,142.5,142.47,9.13764731]
[1768730437371,1.86166686,142.5,142.47,7.01888179]
[1768730447075,1.80166687,142.5,142.47,11.16635316]
[1768730447258,1.74166688,142.5,142.48,2.02870585]
[1768730447455,1.68166689,142.5,142.48,2.02870585]
[1768730447856,24.49549831,142.52,142.48,2.02870585]
[1768730448269,22.37673279,142.52,142.48,2.02870585]
[1768730448468,24.49549831,142.52,142.48,2.02870585]
[1768730449483,2.04118597,142.51,142.48,2.02870585]
[1768730453179,2.04118597,142.51,142.47,7.01888179]
[1768730453373,2.04118597,142.51,142.47,8.95924739]
[1768730453982,2.04118597,142.51,142.47,11.07801291]
[1768730454582,1.95496933,142.5,142.47,8.95924739]
[1768730462682,8.97205141,142.51,142.48,1.9403656]
[1768730464380,1.95496933,142.5,142.48,1.9403656]
[1768730464581,1.95496933,142.5,142.47,11.07801291]
[1768730465389,1.95496933,142.5,142.48,1.9403656]
[1768730465589,8.97205141,142.51,142.48,1.9403656]
[1768730466194,1.95496933,142.5,142.48,1.9403656]
[1768730468596,8.97205141,142.51,142.48,1.9403656]
[1768730469592,7.01708208,142.51,142.48,1.9403656]
[1768730470677,8.97205141,142.51,142.48,1.9403656]
[1768730479802,1.95496933,142.51,142.48,8.95874505]
[1768730480009,1.95496933,142.52,142.49,1.9403656]
[1768730481093,8.97170274,142.52,142.49,1.9403656]
[1768730482212,1.95496933,142.51,142.49,1.9403656]
[1768730486115,8.94250981,142.52,142.49,8.95836526]
[1768730488515,8.94250981,142.52,142.49,1.9403656]
[1768730488701,26.49075125,142.52,142.49,1.9403656]
[1768730490119,8.94289131,142.51,142.48,1.94487341]
[1768730490602,30.00217318,142.51,142.48,1.94487341]
[1768730490804,30.00217318,142.51,142.48,4.06363893]
[1768730492225,30.00217318,142.51,142.48,1.94487341]
[1768730492529,30.00217318,142.51,142.48,4.06363893]
[1768730493625,1.9257764,142.5,142.48,1.94487341]
[1768730493822,1.9257764,142.5,142.47,4.06363893]
[1768730494018,8.94289131,142.51,142.48,1.94487341]
[1768730494211,7.01711491,142.5,142.48,1.94487341]
[1768730494712,8.94289131,142.5,142.48,1.94487341]
[1768730496135,8.94289131,142.5,142.44,121.05086183]
[1768730496136,2.11843689,142.49,142.44,99.75147988]
[1768730496341,31.57878436,142.5,142.41,1.83904193]
[1768730496342,2.11843689,142.45,142.41,1.83904193]
[1768730496543,15.36,142.45,142.4,35.8]
[1768730496836,2.11843689,142.44,142.4,37.63904193]
[1768730497138,23.19103198,142.44,142.4,37.63904193]
[1768730497431,2.11843689,142.43,142.38,9.14176934]
[1768730497636,8.86244588,142.43,142.37,7.02395167]
[1768730497820,1.8429667,142.4,142.36,2.31843689]
[1768730498635,17.76463688,142.39,142.36,2.31843689]
[1768730499227,17.76463688,142.39,142.37,2.11843689]
[1768730499400,1.8429667,142.4,142.37,3.95747882]
[1768730499601,9.06727319,142.4,142.37,3.95747882]
[1768730499842,7.22430649,142.4,142.39,1.83904193]
[1768730500024,24.32310282,142.42,142.39,1.83904193]
[1768730500211,7.22430649,142.41,142.39,1.83904193]
[1768730500412,9.14557992,142.41,142.38,3.95747882]
[1768730501811,16.16759662,142.41,142.38,3.95747882]
[1768730502335,16.16759662,142.41,142.38,1.83904193]
[1768730502520,1.92127343,142.4,142.38,1.83904193]
[1768730502943,1.92127343,142.4,142.37,9.14235782]
[1768730504514,1.92127343,142.4,142.37,2.11843689]
[1768730504808,1.92127343,142.4,142.36,23.39062693]
[1768730505012,1.92127343,142.4,142.36,11.181827]
[1768730505013,8.94396252,142.4,142.36,11.181827]
[1768730505214,8.94396252,142.4,142.37,1.83904193]
[1768730506833,8.94396252,142.4,142.37,1.6283981]
[1768730508417,25.3087226,142.4,142.37,1.6283981]
[1768730509711,25.3087226,142.4,142.37,0.62558939]
[1768730509918,1.92127343,142.39,142.37,0.62558939]
[1768730511150,1.92127343,142.39,142.36,9.34278507]
[1768730511751,1.92127343,142.39,142.37,1.83904193]
[1768730512552,2.10729982,142.38,142.36,0.2]
[1768730512846,7.02310274,142.39,142.36,2.25823953]
[1768730514753,9.13040256,142.39,142.36,2.25823953]
[1768730515858,2.10729982,142.38,142.36,2.25823953]
[1768730516157,2.04729983,142.38,142.36,2.25823953]
[1768730517431,16.36476008,142.4,142.36,9.28260246]
[1768730517432,25.50581953,142.4,142.36,9.28260246]
[1768730518062,2.10729982,142.39,142.36,9.28260246]
[1768730520732,2.04729983,142.39,142.36,9.28260246]
[1768730541443,2.04729983,142.39,142.36,24.66260246]
[1768730544967,4.16573672,142.39,142.36,9.28260246]
[1768730546173,2.04729983,142.39,142.36,9.28260246]
[1768730558584,2.04729983,142.39,142.37,2.328275]
[1768730562271,2.04729983,142.39,142.37,9.35200287]
[1768730563383,2.32886668,142.4,142.38,2.328275]
[1768730564486,2.32886668,142.4,142.38,9.35162319]
[1768730565873,2.32886668,142.4,142.38,7.02334819]
[1768730568868,2.32886668,142.4,142.37,9.3520171]
[1768730570386,2.32886668,142.39,142.36,9.55258205]
[1768730585506,2.27379467,142.36,142.33,0.2]
[1768730585708,4.39584266,142.34,142.32,0.2]
[1768730590706,2.27379467,142.33,142.32,0.2]
[1768730590906,4.39584266,142.33,142.31,0.2]
[1768730592310,4.39584266,142.33,142.31,2.47815187]
[1768730594011,4.39584266,142.33,142.31,0.2]
[1768730596492,2.27379467,142.32,142.31,0.2]
[1768730596699,2.27379467,142.31,142.3,0.2]
[1768730597113,4.39584266,142.32,142.3,0.2]
[1768730597420,26.80235398,142.32,142.3,0.2]
[1768730598114,2.27379467,142.31,142.3,0.2]
[1768730598815,4.39584266,142.31,142.3,0.2]
[1768730599216,2.27379467,142.3,142.29,0.2]
[1768730599725,4.39584266,142.3,142.29,0.2]
[1768730599900,22.40659579,142.32,142.29,0.2]
[1768730599901,2.12204799,142.31,142.29,0.2]
[1768730600102,4.39584266,142.31,142.29,0.2]
[1768730600511,2.12204799,142.3,142.29,0.2]
[1768730600712,4.39584266,142.31,142.29,0.2]
[1768730607403,2.27379467,142.31,142.29,2.69786507]